Department Family,Entity,Date,Expense Type,Expense area,Supplier,Transaction Number,Amount in Sterling �s incl VAT ,Supplier VAT Registration number
NHS,Glos Hospitals NHS Foundation Trust,13/09/2022,Finished processed goods,Inventories,Bayer,000352-26,"45,622.80", 
NHS,Glos Hospitals NHS Foundation Trust,13/09/2022,Finished processed goods,Inventories,Bayer,000352-28,"45,622.80", 
NHS,Glos Hospitals NHS Foundation Trust,13/09/2022,Finished processed goods,Inventories,Bayer,000352-29,"45,622.80", 
NHS,Glos Hospitals NHS Foundation Trust,13/09/2022,Finished processed goods,Inventories,CSL Behring UK Limited,000352-30,"46,771.20", 
NHS,Glos Hospitals NHS Foundation Trust,13/09/2022,Finished processed goods,Inventories,Novartis Pharmaceuticals UK Limited,000354-131,"31,651.20", 
NHS,Glos Hospitals NHS Foundation Trust,13/09/2022,Finished processed goods,Inventories,Bayer,000354-144,"49,272.62", 
NHS,Glos Hospitals NHS Foundation Trust,13/09/2022,Finished processed goods,Inventories,Roche Products Limited,000354-153,"67,956.00", 
NHS,Glos Hospitals NHS Foundation Trust,13/09/2022,Finished processed goods,Inventories,Alliance Healthcare,000354-206,"68,169.60", 
NHS,Glos Hospitals NHS Foundation Trust,13/09/2022,Finished processed goods,Inventories,Alloga UK Limited,000354-274,"45,000.00", 
NHS,Glos Hospitals NHS Foundation Trust,13/09/2022,Finished processed goods,Inventories,Qualasept Ltd t/a Bath ASU,000354-294,"38,038.56", 
NHS,Glos Hospitals NHS Foundation Trust,13/09/2022,Finished processed goods,Inventories,Alliance Healthcare,000356-155,"37,688.40", 
NHS,Glos Hospitals NHS Foundation Trust,13/09/2022,Finished processed goods,Inventories,Alliance Healthcare,000356-156,"-37,688.40", 
NHS,Glos Hospitals NHS Foundation Trust,21/09/2022,Finished processed goods,Inventories,Roche Products Limited,000358-1,"111,720.48", 
NHS,Glos Hospitals NHS Foundation Trust,21/09/2022,Finished processed goods,Inventories,Alliance Healthcare,000359-135,"68,169.60", 
NHS,Glos Hospitals NHS Foundation Trust,21/09/2022,Finished processed goods,Inventories,Alliance Healthcare,000359-163,"33,400.85", 
NHS,Glos Hospitals NHS Foundation Trust,21/09/2022,Finished processed goods,Inventories,Bayer,000359-17,"49,272.62", 
NHS,Glos Hospitals NHS Foundation Trust,21/09/2022,Finished processed goods,Inventories,Bristol Myers Squibb Pharmaceuticals Limited,000359-18,"74,333.70", 
NHS,Glos Hospitals NHS Foundation Trust,21/09/2022,Finished processed goods,Inventories,Alloga UK Limited,000359-195,"45,000.00", 
NHS,Glos Hospitals NHS Foundation Trust,21/09/2022,Finished processed goods,Inventories,Alloga UK Limited,000359-198,"27,120.00", 
NHS,Glos Hospitals NHS Foundation Trust,21/09/2022,Finished processed goods,Inventories,Roche Products Limited,000359-20,"44,520.00", 
NHS,Glos Hospitals NHS Foundation Trust,21/09/2022,Finished processed goods,Inventories,Janssen Cilag Limited,000359-206,"83,462.40", 
NHS,Glos Hospitals NHS Foundation Trust,21/09/2022,Finished processed goods,Inventories,Roche Products Limited,000359-22,"43,764.48", 
NHS,Glos Hospitals NHS Foundation Trust,21/09/2022,Finished processed goods,Inventories,Bayer,000362-95,"45,622.80", 
NHS,Glos Hospitals NHS Foundation Trust,21/09/2022,Finished processed goods,Inventories,Bayer,000362-97,"45,622.80", 
NHS,Glos Hospitals NHS Foundation Trust,21/09/2022,Finished processed goods,Inventories,Bayer,000362-98,"45,622.80", 
NHS,Glos Hospitals NHS Foundation Trust,21/09/2022,Finished processed goods,Inventories,CSL Behring UK Limited,000365-76,"46,771.20", 
NHS,Glos Hospitals NHS Foundation Trust,27/09/2022,Finished processed goods,Inventories,Octapharma Limited,000366-51,"43,536.00", 
NHS,Glos Hospitals NHS Foundation Trust,27/09/2022,Finished processed goods,Inventories,Bayer,000367-139,"49,272.62", 
NHS,Glos Hospitals NHS Foundation Trust,27/09/2022,Finished processed goods,Inventories,Bayer,000367-141,"49,272.62", 
NHS,Glos Hospitals NHS Foundation Trust,27/09/2022,Finished processed goods,Inventories,Seqirus UK Limited,000367-90,"139,345.66", 
NHS,Glos Hospitals NHS Foundation Trust,27/09/2022,Finished processed goods,Inventories,Alloga UK Limited,000368-37,"29,160.00", 
NHS,Glos Hospitals NHS Foundation Trust,27/09/2022,Finished processed goods,Inventories,Bayer,000368-6,"45,622.80", 
NHS,Glos Hospitals NHS Foundation Trust,13/09/2022,Medical & Surgical Equipment : Disposable,Upper GI Specialty,Medtronic Limited,885337,"37,440.00", 
NHS,Glos Hospitals NHS Foundation Trust,21/09/2022,Purchase Computers/Systems,Capital Project Control,Constellia Public limited,897983,"42,827.40", 
NHS,Glos Hospitals NHS Foundation Trust,27/09/2022,Computer Hardware Purchases,IT Recharges,TET Limited t/a Trans Euopean Technology,914607,"27,048.07", 
NHS,Glos Hospitals NHS Foundation Trust,06/09/2022,Building - External Contracts,Capital Project Control,XMA Limited,917476,"31,538.40", 
NHS,Glos Hospitals NHS Foundation Trust,27/09/2022,Patients Appliances : Repairs,Patient Appliances,Opcare Limited,923124,"42,982.25", 
NHS,Glos Hospitals NHS Foundation Trust,21/09/2022,Contract : Other External,UC & Dividend,NHS Gloucestershire Managed Services,923390,"5,841,775.56", 
NHS,Glos Hospitals NHS Foundation Trust,13/09/2022,Fresh Blood & Plasma Products,Blood Products,HA73961 NHS Blood & Transplant,923702,"45,402.19", 
NHS,Glos Hospitals NHS Foundation Trust,13/09/2022,External Contracts : Other,Radiography,Cobalt Health,924338,"67,260.00", 
NHS,Glos Hospitals NHS Foundation Trust,06/09/2022,Purchase Computers/Systems,Capital Project Control,XMA Limited,924504,"75,255.60", 
NHS,Glos Hospitals NHS Foundation Trust,13/09/2022,Purchase Computers/Systems,Capital Project Control,XMA Limited,924655,"31,920.00", 
NHS,Glos Hospitals NHS Foundation Trust,21/09/2022,Other Transport Costs,Patient Transport Services GHX,E-Zec Medical Transport Services Ltd,924913,"30,520.56", 
NHS,Glos Hospitals NHS Foundation Trust,06/09/2022,Advertising & Staff Recruitment,Overseas Recruitment,ID Medical Group Limited,925022,"38,400.00", 
NHS,Glos Hospitals NHS Foundation Trust,06/09/2022,Rates,Rates - GRH,Gloucester City Council,925037,"209,920.00", 
NHS,Glos Hospitals NHS Foundation Trust,06/09/2022,Rates,Rates - CGH,Cheltenham Borough Council,925039,"90,624.00", 
NHS,Glos Hospitals NHS Foundation Trust,06/09/2022,Colour Connection,Payables - Manual,Colour Connection,925680,"35,697.11", 
NHS,Glos Hospitals NHS Foundation Trust,13/09/2022,Implant Procedures,Cardiology Laboratory,Medtronic Limited,925966,"25,920.00", 
NHS,Glos Hospitals NHS Foundation Trust,06/09/2022,Sal Sacrifice Car Scheme,Pay Deductions,Tusker Direct,925980,"53,614.03", 
NHS,Glos Hospitals NHS Foundation Trust,06/09/2022,NHS Logistics control,Payables - Manual,Supply Chain Coordination Ltd - Consumables,926044,"65,320.09", 
NHS,Glos Hospitals NHS Foundation Trust,06/09/2022,Purchase Computers/Systems,Capital Project Control,Keystream Healthcare,926055,"36,660.00", 
NHS,Glos Hospitals NHS Foundation Trust,13/09/2022,Computer Software / License  Fees,EPR Project Revenue,Allscripts Healthcare (IT) UK Limited,926058,"39,250.39", 
NHS,Glos Hospitals NHS Foundation Trust,06/09/2022,Medical & Surgical Equipment : Disposable,CAPD Renal,Baxter Healthcare Limited,926079,"38,681.95", 
NHS,Glos Hospitals NHS Foundation Trust,21/09/2022,Computer Software / License  Fees,Smartcare,First Databank UK Ltd,926772,"78,123.60", 
NHS,Glos Hospitals NHS Foundation Trust,13/09/2022,Fresh Blood & Plasma Products,Blood Products,HA73961 NHS Blood & Transplant,926870,"99,429.08", 
NHS,Glos Hospitals NHS Foundation Trust,13/09/2022,NHS Logistics control,Payables - Manual,Supply Chain Coordination Ltd - Consumables,926938,"184,351.08", 
NHS,Glos Hospitals NHS Foundation Trust,13/09/2022,Implant Procedures,Cardiology Laboratory,Medtronic Limited,927086,"51,840.00", 
NHS,Glos Hospitals NHS Foundation Trust,21/09/2022,Building - External Contracts,Capital Project Control,Kier Infrastructure & Overseas Limited,927265,"1,849,015.37", 
NHS,Glos Hospitals NHS Foundation Trust,21/09/2022,Contractual Clinical Services,Renal Dialysis,B Braun Avitum UK Limited,927273,"129,645.00", 
NHS,Glos Hospitals NHS Foundation Trust,21/09/2022,Contractual Clinical Services,Renal Dialysis,B Braun Avitum UK Limited,927277,"177,066.26", 
NHS,Glos Hospitals NHS Foundation Trust,21/09/2022,Medical & Surgical Equipment Maintenance Contracts,Haematology / Immunology Lab trustwide - NONPAY,Benson Viscometers Limited,927534,"44,249.11", 
NHS,Glos Hospitals NHS Foundation Trust,16/09/2022,Barclay Card,Payables - Manual,Barclaycard Commercial,927857,"47,440.37", 
NHS,Glos Hospitals NHS Foundation Trust,16/09/2022,IT software,Capital Project Control,Attend Anywhere (Pty) Limited,927860,"195,500.00", 
NHS,Glos Hospitals NHS Foundation Trust,16/09/2022,Clinical Negligence,Trustwide Finance,NHS Resolution,927863,"1,937,434.70", 
NHS,Glos Hospitals NHS Foundation Trust,21/09/2022,Other Clinical Costs,Radiography,Cobalt Health,927892,"32,438.00", 
NHS,Glos Hospitals NHS Foundation Trust,21/09/2022,Laboratory Reagents,Microbiology - GRH,Chrystal Consulting Limited,927989,"56,596.09", 
NHS,Glos Hospitals NHS Foundation Trust,21/09/2022,Lease Rents,Shared Services-Admin,Regina Realty Limited,928044,"60,000.00", 
NHS,Glos Hospitals NHS Foundation Trust,21/09/2022,Purchase Computers/Systems,Capital Project Control,Hyland Software UK Limited,928305,"102,486.00", 
NHS,Glos Hospitals NHS Foundation Trust,21/09/2022,Computer Software / License  Fees,EPR Project Revenue,Allscripts Healthcare (IT) UK Limited,928341,"119,520.00", 
NHS,Glos Hospitals NHS Foundation Trust,27/09/2022,Fresh Blood & Plasma Products,Blood Products,HA73961 NHS Blood & Transplant,928345,"45,402.19", 
NHS,Glos Hospitals NHS Foundation Trust,27/09/2022,Fresh Blood & Plasma Products,Blood Products,HA73961 NHS Blood & Transplant,928346,"99,429.08", 
NHS,Glos Hospitals NHS Foundation Trust,21/09/2022,Computer Maintenance,Clinical Systems,Ascribe Ltd (Emis Health),928462,"87,999.60", 
NHS,Glos Hospitals NHS Foundation Trust,27/09/2022,NHS Logistics control,Payables - Manual,Supply Chain Coordination Ltd - Consumables,928953,"254,523.09", 
NHS,Glos Hospitals NHS Foundation Trust,27/09/2022,Contractual Clinical Services,Cardiology Laboratory,AGITO Medical A/S,928989,"31,970.00", 
NHS,Glos Hospitals NHS Foundation Trust,13/09/2022,Histology Practice - CGH,Drs Fees,Histology Partners,DF222305-24,"46,717.43", 
